fUST/lending_fUST_20250315
["ID","MTS","AMOUNT","RATE_DAILY","PERIOD"]
[356148909,1741968016940,163.050875,7.093e-05,2]
[356148910,1741968017150,163.050875,7.27e-05,2]
[356148911,1741968017461,163.050875,7.448e-05,2]
[356148912,1741968035122,169.63447037,8e-05,2]
[356148921,1741968223430,6092.5152425,7.522e-05,2]
[356148925,1741968330160,-500.0,8.218e-05,2]
[356148926,1741968330183,-180.81454823,8.218e-05,2]
[356148928,1741968359091,-307.52843232,8.218e-05,2]
[356148929,1741968359116,-135.86032878,8.218e-05,2]
[356148975,1741968632579,-300.0,8.217e-05,2]
[356148977,1741968632589,-487.50300716,8.218e-05,2]
[356148979,1741968632599,-500.0,8.218e-05,2]
[356148981,1741968632609,-500.0,8.218e-05,2]
[356148983,1741968632619,-500.0,8.218e-05,2]
[356148985,1741968632628,-500.0,8.218e-05,2]
[356148987,1741968632637,-500.0,8.219e-05,2]
[356148989,1741968632647,-500.0,8.219e-05,2]
[356148991,1741968632656,-500.0,8.219e-05,2]
[356148993,1741968632666,-500.0,8.219e-05,2]
[356148995,1741968632676,-500.0,8.219e-05,2]
[356148997,1741968632686,-500.0,8.219e-05,2]
[356148999,1741968632695,-504.69903319,8.219e-05,2]
[356149000,1741968632705,-500.0,8.219e-05,2]
[356149001,1741968632714,-500.0,8.219e-05,2]
[356149002,1741968632723,-514.73188177,8.219e-05,2]
[356149003,1741968632732,-500.0,8.219e-05,2]
[356149004,1741968632741,-500.0,8.219e-05,2]
[356149005,1741968632750,-500.0,8.219e-05,2]
[356149006,1741968632760,-500.0,8.219e-05,2]
[356149007,1741968632769,-515.97,8.219e-05,2]
[356149008,1741968632777,-509.34504912,8.219e-05,2]
[356149009,1741968632787,-500.0,8.219e-05,2]
[356149010,1741968632797,-500.0,8.219e-05,2]
[356149011,1741968632806,-500.0,8.219e-05,2]
[356149012,1741968632815,-500.0,8.219e-05,2]
[356149013,1741968632824,-500.0,8.219e-05,2]
[356149014,1741968632834,-500.0,8.219e-05,2]
[356149015,1741968632843,-747.56,8.219e-05,2]
[356149016,1741968632853,-546.97,8.219e-05,2]
[356149017,1741968632862,-500.0,8.219e-05,2]
[356149018,1741968632872,-505.3616258,8.219e-05,2]
[356149019,1741968632883,-507.37079054,8.219e-05,2]
[356149020,1741968632894,-500.0,8.219e-05,2]
[356149021,1741968632903,-500.0,8.219e-05,2]
[356149022,1741968632913,-500.0,8.219e-05,2]
[356149023,1741968632923,-500.0,8.219e-05,2]
[356149024,1741968632932,-538.84,8.219e-05,2]
[356149025,1741968632942,-338.86845947,8.219e-05,2]
[356149026,1741968632953,-500.0,8.219e-05,2]
[356149027,1741968632963,-507.28730545,8.219e-05,2]
[356149028,1741968632973,-500.0,8.219e-05,2]
[356149030,1741968632982,-500.0,8.219e-05,2]
[356149032,1741968632992,-500.0,8.219e-05,2]
[356149034,1741968633002,-500.0,8.219e-05,2]
[356149036,1741968633012,-500.0,8.219e-05,2]
[356149038,1741968633021,-266.96372682,8.219e-05,2]
[356149039,1741968633032,-500.0,8.219e-05,2]
[356149041,1741968633043,-500.0,8.219e-05,2]
[356149042,1741968633053,-500.0,8.219e-05,2]
[356149043,1741968633064,-500.0,8.219e-05,2]
[356149045,1741968633075,-500.0,8.219e-05,2]
[356149047,1741968633085,-500.0,8.219e-05,2]
[356149049,1741968633095,-598.94030797,8.219e-05,2]
[356149050,1741968633105,-580.19,8.219e-05,2]
[356149052,1741968633114,-860.79,8.219e-05,2]
[356149053,1741968633123,-500.0,8.219e-05,2]
[356149054,1741968633133,-500.0,8.219e-05,2]
[356149055,1741968633143,-580.09401731,8.219e-05,2]
[356149056,1741968633153,-500.0,8.219e-05,2]
[356149057,1741968633163,-500.0,8.219e-05,2]
[356149058,1741968633172,-30.23724098,8.219e-05,2]
[356149070,1741968638331,-535.41275902,8.219e-05,2]
[356149071,1741968638342,-525.00675471,8.219e-05,2]
[356149073,1741968638352,-500.0,8.219e-05,2]
[356149075,1741968638361,-500.0,8.219e-05,2]
[356149077,1741968638371,-500.0,8.219e-05,2]
[356149078,1741968638382,-500.0,8.219e-05,2]
[356149079,1741968638394,-500.0,8.219e-05,2]
[356149080,1741968638404,-661.56,8.219e-05,2]
[356149081,1741968638414,-605.43,8.219e-05,2]
[356149082,1741968638424,-500.0,8.219e-05,2]
[356149083,1741968638433,-500.0,8.219e-05,2]
[356149084,1741968638443,-500.0,8.219e-05,2]
[356149085,1741968638453,-614.71,8.219e-05,2]
[356149086,1741968638462,-582.23,8.219e-05,2]
[356149087,1741968638473,-1073.18,8.219e-05,2]
[356149088,1741968638483,-500.0,8.219e-05,2]
[356149089,1741968638493,-500.0,8.219e-05,2]
[356149090,1741968638503,-500.0,8.219e-05,2]
[356149091,1741968638512,-514.3949053,8.219e-05,2]
[356149092,1741968638522,-500.0,8.219e-05,2]
[356149093,1741968638531,-500.0,8.219e-05,2]
[356149094,1741968638541,-518.82032827,8.219e-05,2]
[356149095,1741968638551,-1131.78,8.219e-05,2]
[356149096,1741968638560,-500.0,8.219e-05,2]
[356149097,1741968638570,-841.62,8.219e-05,2]
[356149098,1741968638580,-644.32,8.219e-05,2]
[356149099,1741968638589,-574.16,8.219e-05,2]
[356149100,1741968638599,-619.14,8.219e-05,2]
[356149101,1741968638610,-399.0125808,8.219e-05,2]
[356149102,1741968638619,-500.0,8.219e-05,2]
[356149103,1741968638629,-500.0,8.219e-05,2]
[356149104,1741968638641,-500.0,8.219e-05,2]
[356149105,1741968638650,-593.24,8.219e-05,2]
[356149106,1741968638660,-517.05,8.219e-05,2]
[356149107,1741968638670,-580.19,8.219e-05,2]
[356149108,1741968638679,-711.75,8.219e-05,2]
[356149109,1741968638688,-500.0,8.219e-05,2]
[356149110,1741968638698,-339.94249739,8.219e-05,2]
[356149111,1741968638708,-500.0,8.219e-05,2]
[356149112,1741968638718,-1219.34,8.219e-05,2]
[356149113,1741968638727,-500.0,8.219e-05,2]
[356149114,1741968638737,-500.0,8.219e-05,2]
[356149115,1741968638746,-500.0,8.219e-05,2]
[356149116,1741968638755,-500.0,8.219e-05,2]
[356149117,1741968638765,-668.11,8.219e-05,2]
[356149118,1741968638775,-500.0,8.219e-05,2]
[356149119,1741968638784,-500.0,8.219e-05,2]
[356149120,1741968638794,-500.0,8.219e-05,2]
[356149121,1741968638804,-500.0,8.219e-05,2]
[356149122,1741968638814,-500.0,8.219e-05,2]
[356149123,1741968638824,-500.0,8.219e-05,2]
[356149124,1741968638834,-500.0,8.219e-05,2]
[356149125,1741968638844,-564.81,8.219e-05,2]
[356149126,1741968638855,-515.83,8.219e-05,2]
[356149127,1741968638865,-500.0,8.219e-05,2]
[356149128,1741968638876,-500.0,8.219e-05,2]
[356149129,1741968638887,-494.21,8.219e-05,2]
[356149130,1741968638906,-1379.65,8.219e-05,2]
[356149131,1741968638917,-543.91,8.219e-05,2]
[356149132,1741968638929,-500.0,8.219e-05,2]
[356149133,1741968638940,-500.0,8.219e-05,2]
[356149134,1741968638951,-500.0,8.219e-05,2]
[356149135,1741968638965,-1815.17,8.219e-05,2]
[356149136,1741968638975,-500.0,8.219e-05,2]
[356149137,1741968638985,-671.43427104,8.219e-05,2]
[356149138,1741968639002,-222.80572896,8.219e-05,2]
[356149139,1741968639013,-320.4370084,8.219e-05,2]
[356149140,1741968639025,-179.5629916,8.219e-05,2]
[356149141,1741968639038,-1073.98,8.219e-05,2]
[356149142,1741968639049,-500.0,8.219e-05,2]
[356149143,1741968639059,-481.5794711,8.219e-05,2]
[356149144,1741968639076,-18.4205289,8.219e-05,2]
[356149145,1741968639086,-500.0,8.219e-05,2]
[356149146,1741968639096,-572.13,8.219e-05,2]
[356149147,1741968639106,-500.0,8.219e-05,2]
[356149148,1741968639121,-500.0,8.219e-05,2]
[356149149,1741968639132,-500.0,8.219e-05,2]
[356149150,1741968639150,-500.0,8.219e-05,2]
[356149151,1741968639160,-500.0,8.219e-05,2]
[356149152,1741968639170,-500.0,8.219e-05,2]
[356149153,1741968639179,-500.0,8.219e-05,2]
[356149154,1741968639189,-500.0,8.219e-05,2]
[356149155,1741968639199,-500.0,8.219e-05,2]
[356149156,1741968639208,-1273.07,8.219e-05,2]
[356149157,1741968639218,-639.95,8.219e-05,2]
[356149158,1741968639229,-598.55,8.219e-05,2]
[356149159,1741968639238,-295.2287365,8.219e-05,2]
[356149160,1741968639250,-204.7712635,8.219e-05,2]
[356149161,1741968639260,-500.0,8.219e-05,2]
[356149162,1741968639270,-208.90887553,8.219e-05,2]
[356149163,1741968639281,-291.09112447,8.219e-05,2]
[356149164,1741968639292,-500.0,8.219e-05,2]
[356149165,1741968639301,-321.08385853,8.219e-05,2]
[356149175,1741968640795,-367.15614147,8.219e-05,2]
[356149176,1741968640805,-5897.13,8.219e-05,2]
[356149177,1741968640815,-500.0,8.219e-05,2]
[356149178,1741968640824,-583.05,8.219e-05,2]
[356149179,1741968640834,-775.07,8.219e-05,2]
[356149180,1741968640843,-500.0,8.219e-05,2]
[356149181,1741968640853,-500.0,8.219e-05,2]
[356149182,1741968640863,-571.96,8.219e-05,2]
[356149184,1741968640872,-500.0,8.219e-05,2]
[356149186,1741968640882,-1334.65,8.219e-05,2]
[356149188,1741968640894,-598.15,8.219e-05,2]
[356149189,1741968640903,-760.53,8.219e-05,2]
[356149190,1741968640912,-1138.37,8.219e-05,2]
[356149191,1741968640922,-500.0,8.219e-05,2]
[356149192,1741968640931,-500.0,8.219e-05,2]
[356149193,1741968640941,-1474.97,8.219e-05,2]
[356149194,1741968640954,-755.18,8.219e-05,2]
[356149195,1741968640964,-4308.64,8.219e-05,2]
[356149196,1741968640974,-500.0,8.219e-05,2]
[356149197,1741968640984,-500.0,8.219e-05,2]
[356149198,1741968640995,-500.0,8.219e-05,2]
[356149199,1741968641004,-500.0,8.219e-05,2]
[356149200,1741968641013,-500.0,8.219e-05,2]
[356149201,1741968641023,-151.73621357,8.219e-05,2]
[356149202,1741968641228,-500.0,8.219e-05,2]
[356149203,1741968641238,-500.0,8.219e-05,2]
[356149204,1741968641248,-500.0,8.219e-05,2]
[356149205,1741968641257,-6092.64,8.219e-05,2]
[356149206,1741968641267,-500.0,8.219e-05,2]
[356149207,1741968641277,-1455.01,8.219e-05,2]
[356149208,1741968641286,-1298.53,8.219e-05,2]
[356149209,1741968641296,-774.15,8.219e-05,2]
[356149210,1741968641306,-1074.67,8.219e-05,2]
[356149211,1741968641316,-500.0,8.219e-05,2]
[356149212,1741968641325,-500.0,8.219e-05,2]
[356149213,1741968641335,-2316.66897883,8.219e-05,2]
[356149231,1741968643994,-724.29102117,8.219e-05,2]
[356149232,1741968644005,-4483.25161898,8.219e-05,2]
[356149245,1741968646652,-412.27838102,8.219e-05,2]
[356149246,1741968646662,-500.0,8.219e-05,2]
[356149247,1741968646672,-500.0,8.219e-05,2]
[356149248,1741968646683,-500.0,8.219e-05,2]
[356149249,1741968646692,-87.64396868,8.219e-05,2]
[356149256,1741968810224,448.79,8e-05,2]
[356149259,1741968867612,250.0,7.269e-05,2]
[356149263,1741969351275,24900.0,7.397e-05,2]
[356149266,1741969554447,-867.7256,0.000145,60]
[356149267,1741969617137,-242.18547723,8.117e-05,2]
[356149270,1741969726959,1836.82785605,8e-05,2]
[356149292,1741969832684,-300.0,8.117e-05,2]
[356149294,1741969832694,-500.0,8.118e-05,2]
[356149296,1741969832705,-500.0,8.118e-05,2]
[356149298,1741969832715,-500.0,8.118e-05,2]
[356149300,1741969832725,-500.0,8.118e-05,2]
[356149302,1741969832734,-500.0,8.118e-05,2]
[356149303,1741969832743,-500.0,8.118e-05,2]
[356149305,1741969832753,-376.30817613,8.118e-05,2]
[356149306,1741969832762,-19515.14865856,8.119e-05,2]
[356149308,1741969832773,-3676.30817613,8.119e-05,2]
[356149310,1741969832783,-500.0,8.219e-05,2]
[356149312,1741969832792,-500.0,8.219e-05,2]
[356149314,1741969832802,-500.0,8.219e-05,2]
[356149316,1741969832811,-500.0,8.219e-05,2]
[356149318,1741969832821,-500.0,8.219e-05,2]
[356149320,1741969832831,-613.29,8.219e-05,2]
[356149322,1741969832841,-500.0,8.219e-05,2]
[356149324,1741969832850,-500.0,8.219e-05,2]
[356149326,1741969832860,-500.0,8.219e-05,2]
[356149328,1741969832869,-500.0,8.219e-05,2]
[356149330,1741969832879,-500.0,8.219e-05,2]
[356149332,1741969832889,-517.60385747,8.219e-05,2]
[356149334,1741969832899,-500.0,8.219e-05,2]
[356149336,1741969832908,-500.0,8.219e-05,2]
[356149338,1741969832917,-500.0,8.219e-05,2]
[356149340,1741969832927,-500.0,8.219e-05,2]
[356149342,1741969832936,-500.0,8.219e-05,2]
[356149344,1741969832946,-500.0,8.219e-05,2]
[356149346,1741969832957,-1028.46,8.219e-05,2]
[356149347,1741969832966,-500.0,8.219e-05,2]
[356149349,1741969832976,-500.0,8.219e-05,2]
[356149351,1741969832985,-500.0,8.219e-05,2]
[356149353,1741969832994,-500.0,8.219e-05,2]
[356149354,1741969833004,-605.38516711,8.219e-05,2]
[356149356,1741969833014,-500.0,8.219e-05,2]
[356149357,1741969833023,-500.0,8.219e-05,2]
[356149358,1741969833033,-539.53,8.219e-05,2]
[356149359,1741969833043,-500.0,8.219e-05,2]
[356149360,1741969833052,-500.0,8.219e-05,2]
[356149361,1741969833063,-500.0,8.219e-05,2]
[356149362,1741969833072,-575.49,8.219e-05,2]
[356149363,1741969833083,-500.0,8.219e-05,2]
[356149364,1741969833092,-806.55,8.219e-05,2]
[356149365,1741969833102,-500.0,8.219e-05,2]
[356149366,1741969833112,-256.68261594,8.219e-05,2]
[356149367,1741969833122,-500.0,8.219e-05,2]
[356149368,1741969833132,-500.0,8.219e-05,2]
[356149369,1741969833142,-500.0,8.219e-05,2]
[356149370,1741969833152,-500.0,8.219e-05,2]
[356149371,1741969833161,-500.0,8.219e-05,2]
[356149372,1741969833171,-545.63,8.219e-05,2]
[356149373,1741969833181,-709.22,8.219e-05,2]
[356149374,1741969833191,-500.0,8.219e-05,2]
[356149375,1741969833201,-500.0,8.219e-05,2]
[356149376,1741969833210,-604.71,8.219e-05,2]
[356149377,1741969833220,-536.09679028,8.219e-05,2]
[356149378,1741969833231,-521.25,8.219e-05,2]
[356149379,1741969833241,-500.0,8.219e-05,2]
[356149380,1741969833250,-296.05231022,8.219e-05,2]
[356149381,1741969833260,-500.0,8.219e-05,2]
[356149382,1741969833270,-500.0,8.219e-05,2]
[356149383,1741969833279,-500.0,8.219e-05,2]
[356149384,1741969833289,-500.0,8.219e-05,2]
[356149385,1741969833298,-500.0,8.219e-05,2]
[356149386,1741969833314,-500.0,8.219e-05,2]
[356149387,1741969833324,-379.0539416,8.219e-05,2]
[356149388,1741969833352,-120.9460584,8.219e-05,2]
[356149389,1741969833363,-1786.83,8.219e-05,2]
[356149390,1741969833372,-105.771592,8.219e-05,2]
[356149395,1741969838683,-394.228408,8.219e-05,2]
[356149396,1741969838693,-323.60438888,8.219e-05,2]
[356149397,1741969838703,-500.0,8.219e-05,2]
[356149398,1741969838713,-500.0,8.219e-05,2]
[356149399,1741969838723,-500.0,8.219e-05,2]
[356149400,1741969838733,-183.59,8.219e-05,2]
[356149401,1741969838743,-548.3,8.219e-05,2]
[356149402,1741969838752,-500.0,8.219e-05,2]
[356149403,1741969838762,-500.0,8.219e-05,2]
[356149404,1741969838771,-182.20216395,8.219e-05,2]
[356149405,1741969838780,-659.56,8.219e-05,2]
[356149406,1741969838790,-1067.52,8.219e-05,2]
[356149407,1741969838800,-500.0,8.219e-05,2]
[356149408,1741969838809,-573.61,8.219e-05,2]
[356149409,1741969838819,-500.0,8.219e-05,2]
[356149410,1741969838829,-500.0,8.219e-05,2]
[356149411,1741969838838,-723.72,8.219e-05,2]
[356149412,1741969838847,-500.0,8.219e-05,2]
[356149413,1741969838858,-686.92,8.219e-05,2]
[356149414,1741969838867,-500.0,8.219e-05,2]
[356149415,1741969838878,-500.0,8.219e-05,2]
[356149416,1741969838888,-558.76,8.219e-05,2]
[356149417,1741969838898,-181.99504,8.219e-05,2]
[356149418,1741969838908,-592.23,8.219e-05,2]
[356149419,1741969838918,-573.23,8.219e-05,2]
[356149420,1741969838928,-500.0,8.219e-05,2]
[356149421,1741969838938,-500.0,8.219e-05,2]
[356149422,1741969838947,-500.0,8.219e-05,2]
[356149423,1741969838958,-727.76,8.219e-05,2]
[356149424,1741969838968,-500.0,8.219e-05,2]
[356149425,1741969838979,-500.0,8.219e-05,2]
[356149426,1741969838989,-500.0,8.219e-05,2]
[356149427,1741969838999,-375.38,8.219e-05,2]
[356149428,1741969839009,-500.0,8.219e-05,2]
[356149429,1741969839019,-500.0,8.219e-05,2]
[356149430,1741969839030,-189.35435377,8.219e-05,2]
[356149431,1741969839039,-500.0,8.219e-05,2]
[356149432,1741969839049,-3546.00021756,8.219e-05,2]
[356149433,1741969839063,-6284.71978244,8.219e-05,2]
[356149434,1741969839073,-536.66,8.219e-05,2]
[356149435,1741969839083,-500.0,8.219e-05,2]
[356149436,1741969839092,-500.0,8.219e-05,2]
[356149437,1741969839102,-824.93,8.219e-05,2]
[356149438,1741969839112,-702.93,8.219e-05,2]
[356149439,1741969839122,-500.0,8.219e-05,2]
[356149440,1741969839131,-652.36,8.219e-05,2]
[356149441,1741969839141,-754.86,8.219e-05,2]
[356149442,1741969839150,-4258.8,8.219e-05,2]
[356149443,1741969839160,-500.0,8.219e-05,2]
[356149444,1741969839170,-500.0,8.219e-05,2]
[356149445,1741969839180,-150.42245912,8.219e-05,2]
[356149446,1741969839189,-635.11,8.219e-05,2]
[356149447,1741969839198,-326.57707764,8.219e-05,2]
[356149448,1741969839209,-500.0,8.219e-05,2]
[356149449,1741969839218,-541.28,8.219e-05,2]
[356149450,1741969839228,-500.0,8.219e-05,2]
[356149451,1741969839237,-589.36,8.219e-05,2]
[356149452,1741969839246,-1069.95,8.219e-05,2]
[356149453,1741969839256,-500.0,8.219e-05,2]
[356149454,1741969839266,-500.0,8.219e-05,2]
[356149455,1741969839275,-1279.51,8.219e-05,2]
[356149456,1741969839285,-500.0,8.219e-05,2]
[356149457,1741969839294,-500.0,8.219e-05,2]
[356149458,1741969839304,-614.18,8.219e-05,2]
[356149459,1741969839314,-523.16,8.219e-05,2]
[356149460,1741969839325,-434.97368168,8.219e-05,2]
[356149461,1741969839335,-500.0,8.219e-05,2]
[356149462,1741969839345,-500.0,8.219e-05,2]
[356149463,1741969839355,-500.0,8.219e-05,2]
[356149464,1741969839365,-505.82029885,8.219e-05,2]
[356149465,1741969839374,-500.0,8.219e-05,2]
[356149466,1741969839383,-6947.66,8.219e-05,2]
[356149467,1741969839394,-500.0,8.219e-05,2]
[356149468,1741969839404,-500.0,8.219e-05,2]
[356149469,1741969839414,-500.0,8.219e-05,2]
[356149470,1741969839423,-500.0,8.219e-05,2]
[356149471,1741969839433,-556.02,8.219e-05,2]
[356149472,1741969839443,-1177.73,8.219e-05,2]
[356149473,1741969839452,-1029.24,8.219e-05,2]
[356149474,1741969839463,-817.66,8.219e-05,2]
[356149475,1741969839473,-1814.91,8.219e-05,2]
[356149476,1741969839483,-754.22,8.219e-05,2]
[356149477,1741969839493,-500.0,8.219e-05,2]
[356149478,1741969839502,-5672.25,8.219e-05,2]
[356149479,1741969839512,-500.0,8.219e-05,2]
[356149480,1741969839522,-166.91417308,8.219e-05,2]
[356149481,1741969839531,-1111.77,8.219e-05,2]
[356149482,1741969839541,-1157.61,8.219e-05,2]
[356149483,1741969839551,-542.51,8.219e-05,2]
[356149484,1741969839561,-1332.12,8.219e-05,2]
[356149485,1741969839570,-500.0,8.219e-05,2]
[356149486,1741969839580,-500.0,8.219e-05,2]
[356149487,1741969839590,-500.0,8.219e-05,2]
[356149488,1741969839599,-542.09,8.219e-05,2]
[356149489,1741969839609,-500.0,8.219e-05,2]
[356149490,1741969839619,-500.0,8.219e-05,2]
[356149491,1741969839628,-500.0,8.219e-05,2]
[356149492,1741969839638,-1286.58,8.219e-05,2]
[356149493,1741969839656,-500.0,8.219e-05,2]
[356149494,1741969839667,-500.0,8.219e-05,2]
[356149495,1741969839677,-17105.41,8.219e-05,2]
[356149496,1741969839687,-500.0,8.219e-05,2]
[356149497,1741969839696,-500.0,8.219e-05,2]
[356149498,1741969839707,-1440.99,8.219e-05,2]
[356149499,1741969839717,-500.0,8.219e-05,2]
[356149500,1741969839728,-12011.04,8.219e-05,2]
[356149501,1741969839738,-1199.61,8.219e-05,2]
[356149502,1741969839747,-856.98,8.219e-05,2]
[356149503,1741969839756,-500.0,8.219e-05,2]
[356149504,1741969839766,-580.21,8.219e-05,2]
[356149505,1741969839775,-500.0,8.219e-05,2]
[356149506,1741969839785,-500.0,8.219e-05,2]
[356149507,1741969839795,-500.0,8.219e-05,2]
[356149508,1741969839810,-500.0,8.219e-05,2]
[356149509,1741969839821,-500.0,8.219e-05,2]
[356149510,1741969839830,-1459.75,8.219e-05,2]
[356149511,1741969839840,-2278.77,8.219e-05,2]
[356149512,1741969839852,-634.0,8.219e-05,2]
[356149513,1741969839863,-3768.99,8.219e-05,2]
[356149514,1741969839872,-500.0,8.219e-05,2]
[356149515,1741969839882,-511.66218867,8.219e-05,2]
[356149516,1741969839892,-500.0,8.219e-05,2]
[356149517,1741969839903,-500.0,8.219e-05,2]
[356149518,1741969839912,-4723.56,8.219e-05,2]
[356149519,1741969839922,-500.0,8.219e-05,2]
[356149520,1741969839931,-609.93,8.219e-05,2]
[356149521,1741969839941,-500.0,8.219e-05,2]
[356149522,1741969839951,-500.0,8.219e-05,2]
[356149523,1741969839963,-617.48,8.219e-05,2]
[356149524,1741969839973,-9058.32,8.219e-05,2]
[356149525,1741969839983,-21735.38,8.219e-05,2]
[356149526,1741969839993,-17888.61,8.219e-05,2]
[356149527,1741969840003,-1084.63,8.219e-05,2]
[356149528,1741969840014,-742.78,8.219e-05,2]
[356149529,1741969840024,-500.0,8.219e-05,2]
[356149530,1741969840034,-500.0,8.219e-05,2]
[356149531,1741969840043,-550.24,8.219e-05,2]
[356149532,1741969840053,-500.0,8.219e-05,2]
[356149533,1741969840063,-500.0,8.219e-05,2]
[356149534,1741969840073,-500.0,8.219e-05,2]
[356149535,1741969840083,-500.0,8.219e-05,2]
[356149537,1741969840093,-500.0,8.219e-05,2]
[356149538,1741969840102,-875.42,8.219e-05,2]
[356149539,1741969840112,-500.0,8.219e-05,2]
[356149540,1741969840122,-500.0,8.219e-05,2]
[356149541,1741969840131,-500.0,8.219e-05,2]
[356149542,1741969840140,-500.0,8.219e-05,2]
[356149543,1741969840149,-500.0,8.219e-05,2]
[356149544,1741969840159,-500.0,8.219e-05,2]
[356149545,1741969840169,-4591.5925845,8.219e-05,2]
[356149548,1741969840255,-2006.62,8.219e-05,2]
[356149560,1741969840866,-378.8874155,8.219e-05,2]
[356149561,1741969840877,-621.1125845,8.219e-05,2]
[356149611,1741969846820,-120.7774155,8.219e-05,2]
[356149612,1741969846830,-500.0,8.219e-05,2]
[356149613,1741969846839,-500.0,8.219e-05,2]
[356149614,1741969846848,-121.1073541,8.219e-05,2]
[356149626,1741970312495,229.3999803,7.219e-05,2]
[356149629,1741970746142,-300.0,8.117e-05,2]
[356149630,1741970746164,-375.1453529,8.118e-05,2]
[356149631,1741970746188,-284.29700789,8.118e-05,2]
[356149632,1741970746210,-500.0,8.118e-05,2]
[356149633,1741970746232,-324.57298136,8.118e-05,2]
[356149634,1741970746253,-500.0,8.118e-05,2]
[356149635,1741970746274,-500.0,8.118e-05,2]
[356149636,1741970746295,-364.65790822,8.118e-05,2]
[356149639,1741970939997,24900.0,7.397e-05,2]
[356149644,1741971012107,465.99893892,7.833e-05,2]
[356149674,1741971031895,-135.34209178,8.118e-05,2]
[356149676,1741971031905,-272.09571232,8.118e-05,2]
[356149677,1741971031915,-4224.5,8.119e-05,2]
[356149678,1741971031925,-500.0,8.193e-05,2]
[356149679,1741971031935,-500.0,8.193e-05,2]
[356149680,1741971031946,-500.0,8.193e-05,2]
[356149681,1741971031955,-500.0,8.193e-05,2]
[356149682,1741971031965,-500.0,8.193e-05,2]
[356149683,1741971031975,-500.0,8.193e-05,2]
[356149685,1741971031984,-190.12772008,8.218e-05,2]
[356149687,1741971031994,-300.0,8.218e-05,2]
[356149688,1741971032004,-17955.95988,8.219e-05,2]
[356149689,1741971032013,-500.0,8.219e-05,2]
[356149690,1741971032023,-500.0,8.219e-05,2]
[356149691,1741971032033,-500.0,8.219e-05,2]
[356149692,1741971032043,-500.0,8.219e-05,2]
[356149693,1741971032052,-500.0,8.219e-05,2]
[356149694,1741971032062,-500.0,8.219e-05,2]
[356149695,1741971032071,-700.5,8.219e-05,2]
[356149696,1741971032080,-500.0,8.219e-05,2]
[356149697,1741971032090,-500.0,8.219e-05,2]
[356149698,1741971032099,-503.22,8.219e-05,2]
[356149699,1741971032109,-500.0,8.219e-05,2]
[356149700,1741971032118,-500.0,8.219e-05,2]
[356149702,1741971032127,-500.0,8.219e-05,2]
[356149704,1741971032136,-355.85274726,8.219e-05,2]
[356149706,1741971032145,-564.8,8.219e-05,2]
[356149708,1741971032155,-500.0,8.219e-05,2]
[356149710,1741971032166,-515.31,8.219e-05,2]
[356149712,1741971032176,-500.0,8.219e-05,2]
[356149714,1741971032185,-500.0,8.219e-05,2]
[356149716,1741971032197,-500.0,8.219e-05,2]
[356149718,1741971032207,-553.68,8.219e-05,2]
[356149720,1741971032217,-500.0,8.219e-05,2]
[356149722,1741971032228,-500.0,8.219e-05,2]
[356149724,1741971032238,-500.0,8.219e-05,2]
[356149726,1741971032248,-500.0,8.219e-05,2]
[356149728,1741971032258,-694.47,8.219e-05,2]
[356149730,1741971032268,-500.0,8.219e-05,2]
[356149732,1741971032278,-512.627187,8.219e-05,2]
[356149734,1741971032287,-1029.84,8.219e-05,2]
[356149736,1741971032297,-500.0,8.219e-05,2]
[356149738,1741971032307,-500.0,8.219e-05,2]
[356149741,1741971032317,-734.5,8.219e-05,2]
[356149743,1741971032327,-500.0,8.219e-05,2]
[356149745,1741971032337,-1206.34,8.219e-05,2]
[356149747,1741971032347,-500.0,8.219e-05,2]
[356149749,1741971032356,-500.0,8.219e-05,2]
[356149751,1741971032367,-500.0,8.219e-05,2]
[356149753,1741971032376,-570.54,8.219e-05,2]